bitfinex/quotes_SOLUSD_20250609
["timestamp","ask_amount","ask_price","bid_price","bid_amount"]
[1749491724860,56.82478871,156.42,156.37,38.31432554]
[1749491725066,52.05787231,156.42,156.37,38.31432554]
[1749491725763,19.66467668,156.41,156.37,38.31432554]
[1749491726252,19.66467668,156.41,156.37,18.64964886]
[1749491726452,19.66467668,156.41,156.37,38.31432554]
[1749491727969,26.0582786,156.41,156.37,38.31432554]
[1749491730048,6.39360192,156.41,156.37,38.31432554]
[1749491730345,6.39360192,156.41,156.39,18.64964886]
[1749491731380,45.66467668,156.42,156.39,18.64964886]
[1749491731564,19.66467668,156.44,156.41,18.64964886]
[1749491731874,19.66467668,156.43,156.4,18.64964886]
[1749491732044,19.66467668,156.41,156.38,10.28]
[1749491732243,26.05894741,156.39,156.38,10.28]
[1749491733544,26.05894741,156.39,156.36,39.4]
[1749491733745,19.66467668,156.38,156.35,18.64964886]
[1749491733953,19.66467668,156.38,156.35,58.02964886]
[1749491734156,6.39549756,156.36,156.35,58.02964886]
[1749491734681,6.3951236,156.37,156.35,58.02964886]
[1749491737053,26.05980028,156.37,156.35,58.02964886]
[1749491738471,19.66467668,156.36,156.34,10.28]
[1749491738675,19.66467668,156.35,156.34,10.28]
[1749491739571,19.66467668,156.35,156.3,28.92964886]
[1749491739778,19.66467668,156.33,156.31,39.38]
[1749491740369,19.66467668,156.32,156.3,28.92964886]
[1749491740563,19.66467668,156.32,156.3,68.30964886]
[1749491740765,19.66467668,156.32,156.3,28.92964886]
[1749491740954,19.66467668,156.32,156.3,68.30964886]
[1749491742177,19.66467668,156.33,156.3,74.70748798]
[1749491742362,19.66467668,156.33,156.3,68.30964886]
[1749491744183,26.06143847,156.33,156.3,18.64964886]
[1749491744369,26.06143847,156.33,156.3,58.04964886]
[1749491745456,19.66467668,156.32,156.3,58.04964886]
[1749491746676,26.06198542,156.32,156.3,58.04964886]
[1749491747177,19.66467668,156.32,156.3,58.04964886]
[1749491747380,6.39686598,156.33,156.3,58.04964886]
[1749491747573,26.06154266,156.33,156.3,58.04964886]
[1749491747879,26.06154266,156.33,156.3,18.64964886]
[1749491748073,26.06154266,156.33,156.3,58.04964886]
[1749491748984,26.06109981,156.34,156.3,58.04964886]
[1749491749189,19.66467668,156.35,156.3,84.11204959]
[1749491749363,19.66467668,156.35,156.32,18.64964886]
[1749491750390,19.66467668,156.35,156.33,39.4]
[1749491751768,19.66467668,156.37,156.34,18.64964886]
[1749491751962,11.16293515,156.38,156.34,28.92964886]
[1749491751963,19.66467668,156.38,156.34,28.92964886]
[1749491752279,19.66467668,156.38,156.34,48.59432554]
[1749491752978,19.66467668,156.38,156.34,28.92964886]
[1749491753381,19.66467668,156.37,156.34,28.92964886]
[1749491753883,26.05993974,156.37,156.34,28.92964886]
[1749491754179,19.66467668,156.38,156.34,28.92964886]
[1749491754578,24.4362314,156.38,156.34,28.92964886]
[1749491754779,19.66467668,156.38,156.34,28.92964886]
[1749491755288,26.0594702,156.38,156.34,28.92964886]
[1749491755783,19.66467668,156.37,156.34,28.92964886]
[1749491755983,19.66467668,156.35,156.34,10.28]
[1749491756174,4.77142493,156.37,156.34,10.28]
[1749491756369,19.66467668,156.36,156.34,10.28]
[1749491756580,19.66467668,156.37,156.34,28.92964886]
[1749491757259,19.66467668,156.36,156.34,28.92964886]
[1749491761195,19.66467668,156.35,156.34,10.28]
[1749491762311,6.39561803,156.36,156.34,10.28]
[1749491762605,26.06029471,156.36,156.34,10.28]
[1749491762887,24.438086,156.35,156.31,18.64964886]
[1749491763068,19.66467668,156.32,156.31,58.20964886]
[1749491763680,26.06181076,156.32,156.31,58.20964886]
[1749491764093,19.66467668,156.32,156.31,58.20964886]
[1749491764300,19.66467668,156.33,156.31,58.20964886]
[1749491764999,26.06164077,156.33,156.31,58.20964886]
[1749491765574,26.06164077,156.33,156.31,18.64964886]
[1749491765776,19.66467668,156.32,156.3,10.28]
[1749491765971,6.39696409,156.33,156.3,10.28]
[1749491765972,19.66467668,156.31,156.3,10.28]
[1749491769102,26.06215983,156.32,156.3,10.28]
[1749491770599,19.66467668,156.31,156.3,10.28]
[1749491773009,26.06222002,156.31,156.3,10.28]
[1749491773388,19.66467668,156.31,156.3,10.28]
[1749491774502,19.66467668,156.32,156.3,10.28]
[1749491774812,19.66467668,156.34,156.31,18.64964886]
[1749491775017,19.66467668,156.33,156.31,18.64964886]
[1749491775193,19.66467668,156.32,156.3,10.28]
[1749491776188,22.3858414,156.35,156.3,10.28]
[1749491776189,19.66467668,156.31,156.3,10.28]
[1749491776589,26.06222002,156.31,156.3,10.28]
[1749491776887,6.39754334,156.31,156.3,10.28]
[1749491777307,26.06195124,156.32,156.3,10.28]
[1749491777520,30.84097942,156.34,156.31,18.64964886]
[1749491777823,26.060713,156.35,156.31,77.79432554]
[1749491778322,4.78043191,156.34,156.31,77.79432554]
[1749491778520,26.060713,156.35,156.31,77.79432554]
[1749491778722,4.78062991,156.34,156.31,77.79432554]
[1749491779025,4.78101748,156.33,156.31,58.12964886]
[1749491779207,19.66467668,156.34,156.31,58.12964886]
[1749491779412,26.060713,156.35,156.31,58.12964886]
[1749491779720,4.7813494,156.34,156.31,58.12964886]
[1749491779921,26.060713,156.35,156.31,58.12964886]
[1749491780123,4.78127336,156.34,156.31,58.12964886]
[1749491780294,26.060713,156.35,156.31,58.12964886]
[1749491780497,4.78173224,156.34,156.31,58.12964886]
[1749491780798,6.39648214,156.34,156.31,58.12964886]
[1749491781228,19.66467668,156.35,156.31,58.12964886]
[1749491781426,4.7821796,156.34,156.31,58.12964886]
[1749491781598,19.66467668,156.35,156.31,58.12964886]
[1749491781795,4.78225714,156.34,156.31,58.12964886]
[1749491782007,19.66467668,156.35,156.31,58.12964886]
[1749491782221,4.78217993,156.34,156.31,58.12964886]
[1749491782429,19.66467668,156.35,156.31,58.12964886]
[1749491782604,11.17906265,156.34,156.31,58.12964886]
[1749491782800,6.39631572,156.34,156.31,58.12964886]
[1749491787400,19.66467668,156.34,156.31,58.12964886]
[1749491788618,19.66467668,156.33,156.31,58.12964886]
[1749491789609,26.06172028,156.33,156.31,58.12964886]
[1749491791100,19.66467668,156.34,156.31,58.12964886]
[1749491791521,6.39672487,156.33,156.31,58.12964886]
[1749491792027,26.06117212,156.34,156.31,58.12964886]
[1749491792932,29.54966004,156.39,156.32,19.66467668]
[1749491793233,24.44806215,156.38,156.34,19.66467668]
[1749491793429,4.78338547,156.37,156.35,18.64964886]
[1749491793619,19.66467668,156.38,156.35,18.64964886]
[1749491793820,4.78296262,156.37,156.35,18.64964886]
[1749491794026,26.0593563,156.38,156.35,18.64964886]
[1749491794327,4.78274664,156.37,156.35,18.64964886]
[1749491794531,26.0593563,156.38,156.35,18.64964886]
[1749491794919,4.78210787,156.37,156.35,18.64964886]
[1749491795228,26.0593563,156.38,156.35,18.64964886]
[1749491795430,4.78200601,156.37,156.35,18.64964886]
[1749491795605,26.0593563,156.38,156.35,18.64964886]
[1749491796721,6.39467962,156.38,156.35,38.31432554]
[1749491796949,6.39467962,156.38,156.35,18.64964886]
[1749491797437,26.0593563,156.38,156.35,18.64964886]
[1749491797914,6.39467962,156.38,156.35,18.64964886]
[1749491800650,11.17323615,156.41,156.37,38.31432554]
[1749491800843,11.17323615,156.41,156.39,18.64964886]
[1749491800844,6.39360569,156.41,156.39,18.64964886]
[1749491801642,26.05779771,156.42,156.39,18.64964886]
[1749491801846,4.77755441,156.41,156.39,18.64964886]
[1749491802045,26.05779771,156.42,156.39,18.64964886]
[1749491802248,4.77755175,156.41,156.39,18.64964886]
[1749491802427,26.05779771,156.42,156.39,18.64964886]
[1749491802749,4.77597586,156.41,156.39,18.64964886]
[1749491802957,4.77591962,156.41,156.39,18.64964886]
[1749491803246,26.05779771,156.42,156.39,18.64964886]
[1749491803624,6.39312103,156.42,156.39,18.64964886]
[1749491805342,11.1648711,156.42,156.39,18.64964886]
[1749491806651,45.66467668,156.44,156.4,38.31432554]
[1749491806857,45.66467668,156.44,156.4,77.71432554]
[1749491807149,26.0,156.44,156.41,19.66467668]
[1749491807352,26.0,156.44,156.43,18.64964886]
[1749491807353,4.76991372,156.44,156.43,18.64964886]
[1749491807638,1.6533,156.47,156.43,84.10691045]
[1749491807639,4.76991372,156.47,156.43,84.10691045]
[1749491807843,4.76991372,156.47,156.45,18.64964886]
[1749491808430,11.16059708,156.48,156.45,18.64964886]
[1749491808637,6.39068336,156.48,156.45,18.64964886]
[1749491809148,11.16059708,156.48,156.45,18.64964886]
[1749491809324,26.05536004,156.48,156.45,18.64964886]
[1749491809724,6.39068336,156.48,156.45,38.31432554]
[1749491810359,6.39068336,156.48,156.47,18.64964886]
[1749491811848,6.39018467,156.49,156.47,18.64964886]
[1749491812223,26.05486135,156.49,156.47,18.64964886]
[1749491813456,40.72319234,156.5,156.47,38.31432554]
[1749491813659,8.33333333,156.5,156.48,19.66467668]
[1749491813825,8.33333333,156.5,156.49,77.69432554]
[1749491814032,8.33333333,156.5,156.49,58.02964886]
[1749491815976,8.33333333,156.5,156.49,39.38]
[1749491816263,34.38778636,156.5,156.47,39.38]
[1749491816563,19.66467668,156.48,156.47,58.02964886]
[1749491816757,19.66467668,156.49,156.47,58.02964886]
[1749491817856,6.39059304,156.48,156.47,58.02964886]
[1749491821154,26.05526972,156.48,156.47,39.38]
[1749491822351,6.39059304,156.48,156.47,39.38]
[1749491822541,6.39018467,156.49,156.47,39.38]
[1749491823032,26.05486135,156.49,156.47,39.38]
[1749491826872,19.66467668,156.48,156.46,58.00964886]
[1749491827179,19.66467668,156.48,156.45,10.28]
[1749491827180,19.66467668,156.47,156.45,10.28]
[1749491827341,19.66467668,156.46,156.45,10.28]
[1749491827965,19.66467668,156.47,156.45,10.28]
[1749491829181,6.39140994,156.46,156.45,10.28]
[1749491830654,19.66467668,156.46,156.45,10.28]
[1749491830859,19.66467668,156.46,156.42,58.00964886]
[1749491831055,19.66467668,156.43,156.41,49.64]
[1749491831256,19.66467668,156.44,156.41,49.64]
[1749491831982,19.66467668,156.44,156.41,10.28]
[1749491832663,6.39263568,156.43,156.41,10.28]
[1749491834387,26.05731236,156.43,156.41,10.28]
[1749491834557,26.05772104,156.42,156.41,10.28]
[1749491834956,26.05772104,156.42,156.39,18.64964886]
[1749491835181,19.66467668,156.41,156.39,18.64964886]
[1749491836662,6.39386189,156.4,156.39,18.64964886]
[1749491843266,26.05831197,156.41,156.39,18.64964886]
[1749491846589,19.66467668,156.4,156.38,39.38]
[1749491846886,6.39363529,156.41,156.38,39.38]
[1749491847391,6.39363529,156.41,156.39,18.64964886]
[1749491851190,6.39363529,156.41,156.38,18.64964886]
[1749491851191,26.05831197,156.41,156.38,18.64964886]
[1749491851386,30.82921842,156.41,156.38,18.64964886]
[1749491851587,26.05831197,156.41,156.38,18.64964886]
[1749491851784,26.05831197,156.41,156.36,25.71037668]
[1749491851785,30.82921842,156.41,156.37,18.64964886]
[1749491851997,26.05831197,156.41,156.37,18.64964886]
[1749491852296,30.82911679,156.41,156.37,18.64964886]
[1749491852496,26.05831197,156.41,156.37,18.64964886]
[1749491852699,30.82911679,156.41,156.37,18.64964886]
[1749491852994,26.05831197,156.41,156.37,18.64964886]
[1749491853181,30.82911679,156.41,156.37,18.64964886]
[1749491853387,26.05831197,156.41,156.37,58.02964886]
[1749491853595,30.82911679,156.41,156.37,58.02964886]
[1749491853800,26.05831197,156.41,156.37,58.02964886]
[1749491854100,26.05831197,156.41,156.37,18.64964886]
[1749491854302,26.05831197,156.41,156.37,58.02964886]
[1749491855105,30.82911679,156.41,156.37,58.02964886]
[1749491855291,26.05831197,156.41,156.37,58.02964886]
[1749491855804,26.05831197,156.41,156.37,77.69432554]
[1749491856001,19.66467668,156.39,156.34,18.64964886]
[1749491856301,19.66467668,156.36,156.33,10.28]
[1749491856490,19.66467668,156.35,156.33,10.28]
[1749491857498,6.39631572,156.34,156.33,10.28]
[1749491858400,26.0609924,156.34,156.33,10.28]
[1749491858979,19.66467668,156.34,156.33,10.28]
[1749491859597,19.66467668,156.35,156.33,10.28]
[1749491861105,19.66467668,156.37,156.34,18.64964886]
[1749491861282,45.66467668,156.38,156.34,18.64964886]
[1749491861477,19.66467668,156.38,156.34,18.64964886]
[1749491861708,19.66467668,156.38,156.34,25.04559264]
[1749491861999,19.66467668,156.37,156.34,25.04559264]
[1749491862391,19.66467668,156.38,156.34,44.71026932]
[1749491863101,19.66467668,156.37,156.34,25.04559264]
[1749491864408,19.66467668,156.38,156.34,25.04559264]
[1749491864609,26.0,156.39,156.35,19.66467668]
[1749491864610,45.66467668,156.39,156.35,19.66467668]
[1749491864985,45.66467668,156.39,156.36,18.64964886]
[1749491865605,19.66467668,156.38,156.35,18.64964886]
[1749491865983,19.66467668,156.36,156.33,56.05657121]
[1749491866188,19.66467668,156.36,156.33,56.05661123]
[1749491866909,19.66467668,156.37,156.33,75.72128791]
[1749491867207,19.66467668,156.38,156.34,18.64964886]
[1749491868010,19.66467668,156.38,156.34,25.04571672]
[1749491869814,26.0,156.39,156.36,18.64964886]
[1749491870117,189.28,156.41,156.38,19.66467668]
[1749491870118,149.9,156.41,156.38,19.66467668]
[1749491870303,19.66467668,156.44,156.4,38.31432554]
[1749491870504,45.66467668,156.44,156.4,38.31432554]
[1749491870703,45.66467668,156.44,156.4,18.64964886]
[1749491871317,45.66467668,156.44,156.4,38.31432554]
[1749491871496,45.66467668,156.44,156.41,6.3934531]
[1749491872308,45.66467668,156.44,156.4,25.04333026]
[1749491873005,19.66467668,156.43,156.4,18.64964886]
[1749491873203,19.66467668,156.41,156.39,39.38]
[1749491873518,4.76446906,156.43,156.39,45.77425964]
[1749491873519,19.66467668,156.42,156.39,45.77425964]
[1749491874522,24.42914574,156.43,156.39,45.77425964]
[1749491874714,24.42914574,156.43,156.4,18.64964886]
[1749491874917,45.66467668,156.44,156.4,18.64964886]
[1749491875110,50.42914574,156.44,156.4,18.64964886]
[1749491875302,45.66467668,156.44,156.4,18.64964886]
[1749491875503,4.76817478,156.43,156.41,6.3934531]
[1749491875705,24.43285146,156.45,156.41,26.05812978]
[1749491876304,19.66467668,156.45,156.41,26.05812978]
[1749491876518,4.76820537,156.44,156.41,26.05812978]
[1749491876724,24.43288205,156.45,156.41,26.05812978]
[1749491877203,19.66467668,156.45,156.41,26.05812978]
[1749491877399,26.0,156.45,156.41,26.05812978]
[1749491877804,45.66467668,156.45,156.41,26.05812978]
[1749491878111,4.76867037,156.44,156.41,6.3934531]
[1749491878304,24.43334705,156.44,156.41,6.3934531]
[1749491880627,4.76867037,156.44,156.41,6.3934531]
[1749491881422,45.66467668,156.45,156.41,6.3934531]
[1749491881631,4.76943649,156.44,156.41,26.05812978]
[1749491882123,4.76938277,156.44,156.42,38.31432554]
[1749491882315,45.66467668,156.46,156.42,38.31432554]
[1749491882624,45.66467668,156.46,156.42,77.67432554]
[1749491882805,50.43326431,156.46,156.42,77.67432554]
[1749491883128,45.66467668,156.46,156.42,77.67432554]
[1749491883302,50.4333125,156.46,156.42,77.67432554]
[1749491883505,45.66467668,156.46,156.43,6.39263568]
[1749491883926,19.66467668,156.45,156.42,64.40251008]
[1749491887509,19.66467668,156.44,156.42,64.40251008]
[1749491890032,24.43210287,156.45,156.42,64.40251008]
[1749491890844,50.43210287,156.46,156.42,84.06718676]
[1749491891137,45.66467668,156.46,156.42,84.06718676]
[1749491891333,50.43210287,156.46,156.42,84.06718676]
[1749491891526,45.66467668,156.46,156.42,84.06718676]
[1749491891729,50.43210287,156.46,156.42,84.06718676]
[1749491891934,45.66467668,156.46,156.42,64.40251008]
[1749491892122,50.43210287,156.46,156.42,84.06718676]
[1749491892322,45.66467668,156.46,156.42,84.06718676]
[1749491892724,4.76742619,156.46,156.43,19.66467668]
[1749491892933,19.66467668,156.47,156.43,19.66467668]
[1749491893124,24.43210287,156.47,156.43,19.66467668]
[1749491893325,19.66467668,156.47,156.43,19.66467668]
[1749491894352,50.43210287,156.48,156.44,38.31432554]
[1749491894644,24.43210287,156.49,156.44,38.31432554]
[1749491894823,4.76742619,156.48,156.44,38.31432554]
[1749491895016,19.66467668,156.49,156.44,38.31432554]
[1749491895017,24.43210287,156.49,156.44,38.31432554]
[1749491895222,4.76742619,156.48,156.44,38.31432554]
[1749491895528,24.43210287,156.49,156.44,38.31432554]
[1749491895726,24.43210287,156.49,156.45,6.39181847]
[1749491896551,19.66467668,156.49,156.45,6.39181847]
[1749491897338,19.66467668,156.48,156.45,6.39181847]
[1749491900653,19.66467668,156.49,156.45,26.05649515]
[1749491903134,19.66467668,156.48,156.45,6.39181847]
[1749491904436,19.66467668,156.49,156.45,6.39181847]
[1749491904753,19.66467668,156.48,156.45,6.39181847]
[1749491911353,24.43210287,156.48,156.45,6.39181847]
[1749491911551,19.66467668,156.48,156.45,6.39181847]
[1749491911855,24.43210287,156.48,156.45,6.39181847]
[1749491912056,19.66467668,156.48,156.45,6.39181847]
[1749491912739,19.66467668,156.46,156.43,10.26]
[1749491913067,24.43389501,156.46,156.43,10.26]
[1749491913238,19.66467668,156.46,156.43,10.26]
[1749491914266,4.77454137,156.45,156.43,10.26]
[1749491914439,19.66467668,156.46,156.43,10.26]
[1749491914640,4.77492828,156.45,156.43,10.26]
[1749491914839,26.05623555,156.46,156.43,10.26]
[1749491915057,4.77492671,156.45,156.43,10.26]
[1749491915255,4.77492671,156.44,156.43,10.26]
[1749491923653,4.78130848,156.44,156.43,10.26]
[1749491924468,6.39087416,156.48,156.44,18.64964886]
[1749491924765,7.54476036,156.49,156.45,12.55494071]
[1749491924766,4.78106259,156.47,156.45,12.55494071]
[1749491924976,12.55494071,156.48,156.44,12.55494071]
[1749491925143,4.78116502,156.47,156.44,12.55494071]
[1749491925467,4.78116502,156.46,156.44,18.64964886]
[1749491925655,31.96866036,156.5,156.46,18.64964886]
[1749491925656,26.0,156.5,156.46,18.64964886]
[1749491925852,17.33574824,156.49,156.46,18.64964886]
[1749491926179,4.78080753,156.48,156.45,18.64964886]
[1749491926461,4.78080753,156.47,156.45,18.64964886]
[1749491926670,12.55494071,156.49,156.45,18.64964886]
[1749491926853,4.78123404,156.48,156.45,18.64964886]
[1749491927055,4.78123404,156.47,156.45,18.64964886]
[1749491927265,12.55494071,156.49,156.45,18.64964886]
[1749491927568,4.78119471,156.48,156.45,18.64964886]
[1749491927873,4.78119471,156.47,156.45,18.64964886]
[1749491928072,18.94520826,156.49,156.45,18.64964886]
[1749491928261,4.78094892,156.48,156.45,18.64964886]
[1749491928468,4.78094892,156.47,156.45,18.64964886]
[1749491928779,18.94520826,156.49,156.45,31.20458957]
[1749491928952,4.78056065,156.48,156.45,31.20458957]
[1749491929153,18.94520826,156.49,156.45,31.20458957]
[1749491929351,4.78057817,156.48,156.45,31.20458957]
[1749491929547,4.78035623,156.47,156.45,31.20458957]
[1749491929748,18.94520826,156.49,156.45,31.20458957]
[1749491930065,4.78050891,156.48,156.45,31.20458957]
[1749491930268,4.78050891,156.47,156.45,31.20458957]
[1749491930451,18.94520826,156.49,156.45,31.20458957]
[1749491930652,4.78042034,156.48,156.45,31.20458957]
[1749491930853,18.94520826,156.49,156.45,31.20458957]
[1749491930854,4.78042034,156.47,156.45,31.20458957]
[1749491931052,18.94520826,156.49,156.45,31.20458957]
[1749491931277,4.78041994,156.48,156.45,31.20458957]
[1749491931470,4.78041994,156.47,156.45,31.20458957]
[1749491931670,18.94520826,156.49,156.45,31.20458957]
[1749491931977,4.78040941,156.48,156.45,31.20458957]
[1749491932163,4.78040941,156.47,156.45,31.20458957]
[1749491932360,18.94520826,156.49,156.45,31.20458957]
[1749491932549,4.78017956,156.48,156.45,31.20458957]
[1749491932752,4.78017956,156.47,156.45,31.20458957]
[1749491932953,18.94520826,156.49,156.45,37.59639822]
[1749491933282,4.78021354,156.48,156.45,37.59639822]
[1749491933576,18.94520826,156.49,156.45,37.59639822]
[1749491933752,4.78022896,156.48,156.45,18.64964886]
[1749491933953,4.78022896,156.47,156.45,18.64964886]
[1749491934275,12.55494071,156.48,156.45,18.64964886]
[1749491934585,4.7809105,156.47,156.45,18.64964886]
[1749491934774,12.55494071,156.48,156.45,18.64964886]
[1749491935072,4.78085265,156.47,156.45,18.64964886]
[1749491935276,6.39026755,156.49,156.45,31.20458957]
[1749491935277,18.94520826,156.49,156.45,31.20458957]
[1749491935452,4.78084931,156.48,156.45,31.20458957]
[1749491935779,4.78084931,156.47,156.45,31.20458957]
[1749491935962,18.94520826,156.49,156.45,31.20458957]
[1749491936165,4.78103903,156.48,156.45,31.20458957]
[1749491936362,4.78103903,156.47,156.45,31.20458957]
[1749491936679,18.94520826,156.49,156.45,31.20458957]
[1749491936877,4.78115639,156.48,156.45,31.20458957]
[1749491937061,4.78115639,156.47,156.45,31.20458957]
[1749491937254,12.55494071,156.49,156.45,37.59637009]
[1749491937456,8.33333333,156.5,156.47,31.20458957]
[1749491937668,4.78067382,156.49,156.48,18.64964886]
[1749491938155,4.78067382,156.49,156.47,39.32]
[1749491938351,17.33561453,156.48,156.45,39.32]
[1749491938557,14.72318999,156.5,156.45,39.32]
[1749491938761,12.55494071,156.48,156.45,39.32]
[1749491939611,4.78071493,156.47,156.45,39.32]
[1749491939762,18.94581806,156.48,156.45,39.32]
[1749491940084,4.78079206,156.47,156.45,39.32]
[1749491940381,18.94581806,156.48,156.45,39.32]
[1749491940576,6.39087735,156.48,156.45,39.32]
[1749491941769,14.72324441,156.5,156.45,58.92999778]
[1749491941968,4.78031752,156.49,156.45,58.92999778]
[1749491942268,14.72324441,156.5,156.45,58.92999778]
[1749491942269,4.78031752,156.48,156.45,58.92999778]
[1749491942468,34.33324219,156.5,156.45,58.92999778]
[1749491942668,4.78014626,156.49,156.45,58.92999778]
[1749491942887,4.78014626,156.48,156.45,58.92999778]
[1749491943069,34.33324219,156.5,156.45,58.92999778]
[1749491943376,11.17034593,156.49,156.45,58.92999778]
[1749491943582,4.78008527,156.48,156.45,58.92999778]
[1749491943788,6.39026066,156.49,156.45,58.92999778]
[1749491944082,4.77978268,156.48,156.47,18.64964886]
[1749491944286,8.33333333,156.5,156.48,18.64964886]
[1749491944475,4.77932332,156.49,156.48,38.25964664]
[1749491947686,8.33333333,156.5,156.48,83.97023968]
[1749491947988,8.33333333,156.5,156.49,38.25964664]
[1749491949283,8.33333333,156.5,156.49,18.64964886]
[1749491951889,8.33333333,156.5,156.48,49.56]
[1749491952066,24.38446307,156.49,156.48,10.24]
[1749491953991,24.38446307,156.49,156.45,57.94964886]
[1749491954189,11.16513707,156.48,156.45,57.94964886]
[1749491954390,6.39067178,156.48,156.45,57.94964886]
[1749491954778,4.7751151,156.47,156.44,10.24]
[1749491954987,19.60999778,156.46,156.44,10.24]
[1749491955171,6.39067178,156.48,156.44,10.24]
[1749491955172,19.60999778,156.45,156.44,10.24]
[1749491955488,19.60999778,156.46,156.44,10.24]
[1749491956092,4.77549489,156.45,156.44,10.24]
[1749491956388,11.16731336,156.45,156.44,10.24]
[1749491956687,30.77731114,156.45,156.44,10.24]
[1749491956886,26.00181625,156.45,156.44,10.24]
[1749491957067,30.7770981,156.45,156.44,10.24]
[1749491957267,26.00181625,156.45,156.44,10.24]
[1749491957578,30.77698637,156.45,156.44,10.24]
[1749491957777,30.77694967,156.45,156.44,10.24]
[1749491958283,26.00181625,156.45,156.44,10.24]
[1749491959571,19.60999778,156.46,156.44,10.24]
[1749491960290,24.38539295,156.45,156.44,10.24]
[1749491961079,30.77721142,156.45,156.44,10.24]
[1749491961292,30.77721142,156.45,156.42,39.3]
[1749491961494,26.00181625,156.45,156.42,39.3]
[1749491965398,19.60999778,156.43,156.4,10.24]
[1749491965577,19.60999778,156.42,156.4,10.24]
[1749491966380,5.96914078,156.46,156.4,10.24]
[1749491966582,19.60999778,156.43,156.4,10.24]
[1749491966782,19.60999778,156.42,156.4,10.24]
[1749491967388,26.00327491,156.42,156.4,10.24]
[1749491969879,6.39327713,156.42,156.4,10.24]
[1749491970093,26.00327491,156.42,156.4,10.24]
[1749491974900,19.60999778,156.42,156.4,10.24]
[1749491975302,26.00305694,156.42,156.4,10.24]
[1749491980290,19.60999778,156.42,156.4,10.24]
[1749491981002,11.15427365,156.44,156.4,29.84999778]
[1749491981209,39.3,156.47,156.41,18.64964886]
[1749491981210,6.39197033,156.45,156.41,18.64964886]
[1749491981390,19.60999778,156.44,156.41,18.64964886]
[1749491983206,12.55747839,156.44,156.41,18.64964886]
[1749491984398,18.94944872,156.45,156.41,18.64964886]
[1749491987703,6.39197033,156.45,156.41,18.64964886]
[1749491987916,12.55747839,156.43,156.41,18.64964886]
[1749491988129,18.94944872,156.45,156.41,18.64964886]
[1749491988285,18.94944872,156.45,156.41,31.20712725]
[1749491988490,6.39197033,156.45,156.41,31.20712725]
[1749491989014,18.94944872,156.45,156.41,31.20712725]
[1749491992997,23.71421416,156.45,156.41,18.64964886]
[1749491993198,18.94944872,156.45,156.41,18.64964886]
[1749491995032,12.55747839,156.44,156.41,18.64964886]
[1749491996418,12.55747839,156.45,156.41,18.64964886]
[1749491996611,4.77531263,156.44,156.41,18.64964886]
[1749491996793,12.55747839,156.45,156.41,18.64964886]
[1749491996997,4.77530926,156.44,156.41,18.64964886]
[1749491997219,18.9494517,156.45,156.41,18.64964886]
[1749491997526,4.7720875,156.44,156.41,18.64964886]
[1749491997727,18.9494517,156.45,156.41,18.64964886]
[1749491997936,4.77124348,156.44,156.41,18.64964886]
[1749491998238,18.9494517,156.45,156.41,18.64964886]
[1749491998425,4.77056664,156.44,156.41,18.64964886]
[1749491998729,18.9494517,156.45,156.41,18.64964886]
[1749491998910,4.77196028,156.44,156.41,18.64964886]
[1749491999094,18.9494517,156.45,156.41,18.64964886]
[1749491999294,4.77178592,156.44,156.41,18.64964886]
[1749491999653,18.9494517,156.45,156.41,18.64964886]
[1749491999827,4.77233734,156.44,156.41,18.64964886]
[1749492000013,18.9494517,156.45,156.41,18.64964886]
[1749492000310,4.77240043,156.44,156.41,18.64964886]
[1749492000500,6.39197331,156.45,156.41,18.64964886]
[1749492000700,4.77227325,156.44,156.41,18.64964886]
[1749492000900,18.9494517,156.45,156.41,18.64964886]
[1749492001209,4.7724014,156.44,156.41,18.64964886]
[1749492001398,18.9494517,156.45,156.41,18.64964886]
[1749492001597,4.7725386,156.44,156.41,18.64964886]
[1749492001837,12.55747839,156.44,156.41,18.64964886]
[1749492002128,6.39197331,156.45,156.41,18.64964886]
[1749492002331,4.77244508,156.44,156.41,31.20712725]
[1749492002510,18.9494517,156.45,156.41,31.20712725]
[1749492002915,4.7726502,156.44,156.41,31.20712725]
[1749492003120,5.96914078,156.48,156.43,12.55747839]
[1749492003432,4.77284586,156.47,156.46,12.55747839]
[1749492003815,4.77284586,156.47,156.45,31.20712725]
[1749492004139,18.94783384,156.49,156.45,41.42712725]
[1749492004316,4.77098097,156.48,156.45,41.42712725]
[1749492004516,4.77098097,156.47,156.45,41.42712725]
[1749492004730,6.39035545,156.49,156.45,41.42712725]
[1749492004933,4.77115341,156.48,156.45,41.42712725]
[1749492005124,4.77093921,156.47,156.45,28.86964886]
[1749492005435,17.32735324,156.46,156.45,10.22]
[1749492005818,17.32735324,156.46,156.42,31.20712725]
[1749492006133,4.76987485,156.45,156.42,31.20712725]
[1749492006330,12.55747839,156.46,156.42,31.20712725]
[1749492006629,11.16108717,156.45,156.42,18.64964886]